fUST/lending_fUST_20260112
["ID","MTS","AMOUNT","RATE_DAILY","PERIOD"]
[401346202,1768149050971,-1000.0,0.00022419,10]
[401346204,1768149050980,-715.0,0.00022419,10]
[401346206,1768149050989,-151.0,0.000225,6]
[401346208,1768149050998,-2140.41,0.000228,14]
[401346209,1768149051007,-468.77,0.00023,2]
[401346210,1768149051017,-151.74,0.000232,2]
[401346211,1768149051026,-556.3,0.00023455,2]
[401346212,1768149051035,-468.77,0.000235,2]
[401346213,1768149051044,-765.03883211,0.00023939,2]
[401346214,1768149051055,-151.0,0.00024,6]
[401346215,1768149051064,-468.77,0.00024,2]
[401346216,1768149051074,-151.0,0.000241,9]
[401346217,1768149051083,-151.74,0.000241,2]
[401346218,1768149051092,-151.0,0.0002414,2]
[401346219,1768149051102,-151.0,0.0002414,2]
[401346220,1768149051111,-151.0,0.0002414,2]
[401346222,1768149051122,-311.85701,0.0002414,2]
[401346224,1768149051132,-250.0,0.0002414,2]
[401346226,1768149051143,-151.0,0.0002414,2]
[401346228,1768149051153,-151.0,0.0002414,2]
[401346229,1768149051162,-250.0,0.0002414,2]
[401346231,1768149051174,-250.0,0.0002414,2]
[401346233,1768149051184,-151.0,0.0002414,2]
[401346235,1768149051194,-151.0,0.0002414,2]
[401346237,1768149051203,-250.0,0.0002414,2]
[401346238,1768149051212,-151.0,0.0002414,2]
[401346239,1768149051222,-250.0,0.0002414,2]
[401346241,1768149051231,-250.0,0.0002414,2]
[401346243,1768149051241,-151.0,0.0002414,2]
[401346244,1768149051251,-250.0,0.0002414,2]
[401346246,1768149051260,-151.0,0.0002414,2]
[401346248,1768149051269,-250.0,0.0002414,2]
[401346250,1768149051279,-151.0,0.0002414,2]
[401346251,1768149051288,-151.0,0.0002414,2]
[401346252,1768149051298,-250.0,0.0002414,2]
[401346253,1768149051307,-265.04542702,0.0002414,2]
[401346254,1768149051317,-151.0,0.0002414,2]
[401346255,1768149051327,-250.0,0.0002414,2]
[401346257,1768149051336,-151.0,0.0002414,2]
[401346258,1768149051347,-151.0,0.0002414,2]
[401346259,1768149051356,-250.0,0.0002414,2]
[401346260,1768149051366,-151.0,0.0002414,2]
[401346261,1768149051377,-250.0,0.0002414,2]
[401346262,1768149051387,-151.0,0.0002414,2]
[401346263,1768149051397,-151.0,0.0002414,2]
[401346264,1768149051407,-250.0,0.0002414,2]
[401346265,1768149051417,-151.0,0.0002414,2]
[401346266,1768149051434,-445.202766,0.0002414,2]
[401346267,1768149051445,-151.0,0.0002414,2]
[401346268,1768149051456,-250.0,0.0002414,2]
[401346269,1768149051470,-151.0,0.0002414,2]
[401346270,1768149051484,-250.0,0.0002414,2]
[401346271,1768149051495,-151.0,0.0002414,2]
[401346272,1768149051506,-151.0,0.0002414,2]
[401346273,1768149051516,-151.0,0.0002414,2]
[401346274,1768149051526,-250.0,0.0002414,2]
[401346275,1768149051536,-250.0,0.0002414,2]
[401346276,1768149051546,-151.0,0.0002414,2]
[401346277,1768149051558,-151.0,0.0002414,2]
[401346278,1768149051568,-151.0,0.0002414,2]
[401346279,1768149051579,-151.0,0.0002414,2]
[401346280,1768149051589,-151.0,0.0002414,2]
[401346281,1768149051599,-151.0,0.0002414,2]
[401346282,1768149051610,-250.0,0.0002414,2]
[401346283,1768149051621,-151.0,0.0002414,2]
[401346284,1768149051631,-151.0,0.0002414,2]
[401346285,1768149051641,-151.0,0.0002414,2]
[401346286,1768149051652,-250.0,0.0002414,2]
[401346287,1768149051662,-151.0,0.0002414,2]
[401346288,1768149051679,-151.0,0.0002414,2]
[401346289,1768149051690,-151.0,0.0002414,2]
[401346290,1768149051701,-151.0,0.0002414,2]
[401346291,1768149051712,-151.0,0.0002414,2]
[401346292,1768149051724,-250.0,0.0002414,2]
[401346293,1768149051735,-151.0,0.0002414,2]
[401346294,1768149051745,-151.0,0.0002414,2]
[401346295,1768149051754,-151.0,0.0002414,2]
[401346296,1768149051766,-151.0,0.0002414,2]
[401346297,1768149051776,-151.0,0.0002414,2]
[401346298,1768149051788,-250.0,0.0002414,2]
[401346299,1768149051798,-250.0,0.0002414,2]
[401346300,1768149051809,-30000.0,0.0002414,2]
[401346301,1768149051819,-151.0,0.0002414,2]
[401346302,1768149051829,-242.10116632,0.0002414,2]
[401346303,1768149051839,-151.0,0.0002414,2]
[401346304,1768149051849,-151.0,0.0002414,2]
[401346305,1768149051858,-151.0,0.0002414,2]
[401346306,1768149051867,-250.0,0.0002414,2]
[401346307,1768149051876,-250.0,0.0002414,2]
[401346308,1768149051885,-151.0,0.0002414,2]
[401346309,1768149051894,-151.0,0.0002414,2]
[401346310,1768149051902,-151.0,0.0002414,2]
[401346311,1768149051910,-151.0,0.0002414,2]
[401346312,1768149051919,-250.0,0.0002414,2]
[401346313,1768149051931,-250.0,0.0002414,2]
[401346314,1768149051938,-151.0,0.0002414,2]
[401346315,1768149051946,-151.0,0.0002414,2]
[401346316,1768149051952,-151.0,0.0002414,2]
[401346317,1768149051961,-250.0,0.0002414,2]
[401346318,1768149051968,-250.0,0.0002414,2]
[401346319,1768149051975,-151.0,0.0002414,2]
[401346320,1768149051982,-151.0,0.0002414,2]
[401346321,1768149051989,-151.0,0.0002414,2]
[401346322,1768149051997,-250.0,0.0002414,2]
[401346323,1768149052004,-250.0,0.0002414,2]
[401346324,1768149052015,-151.0,0.0002414,2]
[401346325,1768149052025,-151.0,0.0002414,2]
[401346326,1768149052034,-151.0,0.0002414,2]
[401346327,1768149052044,-151.0,0.0002414,2]
[401346328,1768149052053,-250.0,0.0002414,2]
[401346329,1768149052062,-151.0,0.0002414,2]
[401346330,1768149052071,-151.0,0.0002414,2]
[401346331,1768149052080,-151.0,0.0002414,2]
[401346332,1768149052089,-201.61280064,0.0002414,2]
[401346333,1768149052099,-291.2784889,0.0002414,2]
[401346334,1768149052109,-151.0,0.0002414,2]
[401346335,1768149052118,-151.0,0.0002414,2]
[401346336,1768149052128,-151.0,0.0002414,2]
[401346337,1768149052137,-151.0,0.0002414,2]
[401346338,1768149052146,-151.0,0.0002414,2]
[401346339,1768149052156,-151.0,0.0002414,2]
[401346340,1768149052166,-151.0,0.0002414,2]
[401346341,1768149052178,-151.0,0.0002414,2]
[401346342,1768149052187,-151.0,0.0002414,2]
[401346343,1768149052196,-151.0,0.0002414,2]
[401346344,1768149052205,-156.587,0.0002414,2]
[401346345,1768149052214,-151.0,0.0002414,2]
[401346346,1768149052223,-151.0,0.0002414,2]
[401346347,1768149052232,-152.09143049,0.0002414,2]
[401346348,1768149052241,-152.53645226,0.0002414,2]
[401346349,1768149052251,-151.0,0.0002414,2]
[401346350,1768149052260,-2150.738,0.0002414,2]
[401346351,1768149052344,-500.0,0.0002414,2]
[401346352,1768149052355,-151.0,0.0002414,2]
[401346353,1768149052365,-500.0,0.0002414,2]
[401346354,1768149052375,-151.0,0.0002414,2]
[401346355,1768149052384,-500.0,0.0002414,2]
[401346356,1768149052394,-151.0,0.0002414,2]
[401346357,1768149052404,-500.0,0.0002414,2]
[401346358,1768149052414,-250.15738416,0.0002414,2]
[401346359,1768149052429,-500.0,0.0002414,2]
[401346360,1768149052437,-500.0,0.0002414,2]
[401346361,1768149052446,-250.0,0.0002414,2]
[401346362,1768149052460,-500.0,0.0002414,2]
[401346363,1768149052469,-250.0,0.0002414,2]
[401346364,1768149052478,-500.0,0.0002414,2]
[401346365,1768149052486,-250.0,0.0002414,2]
[401346366,1768149052497,-500.0,0.0002414,2]
[401346367,1768149052506,-250.0,0.0002414,2]
[401346368,1768149052516,-500.0,0.0002414,2]
[401346369,1768149052527,-250.0,0.0002414,2]
[401346370,1768149052536,-500.0,0.0002414,2]
[401346371,1768149052545,-250.0,0.0002414,2]
[401346372,1768149052555,-500.0,0.0002414,2]
[401346373,1768149052564,-255.89504653,0.0002414,2]
[401346374,1768149052573,-500.0,0.0002414,2]
[401346375,1768149052583,-500.0,0.0002414,2]
[401346376,1768149052592,-2030.296672,0.0002414,2]
[401346377,1768149052602,-500.0,0.0002414,2]
[401346378,1768149052611,-500.0,0.0002414,2]
[401346379,1768149052621,-2105.41764886,0.00024195,2]
[401346380,1768149052631,-2183.31810187,0.0002425,2]
[401346381,1768149052641,-13367.01,0.000243,2]
[401346382,1768149052651,-18947.52786216,0.00024496,2]
[401346383,1768149052660,-468.77,0.000245,2]
[401346384,1768149052669,-630.83049355,0.0002465,2]
[401346385,1768149052680,-500.0,0.00024658,2]
[401346386,1768149052690,-1000.0,0.00024661,10]
[401346387,1768149052699,-1000.0,0.00024661,10]
[401346388,1768149052708,-1000.0,0.00024661,10]
[401346389,1768149052718,-323.39571937,0.00024688,2]
[401346390,1768149052728,-151.0,0.00024688,2]
[401346391,1768149052737,-461.67526834,0.00024688,2]
[401346392,1768149052747,-30307.20348016,0.00024688,2]
[401346393,1768149052756,-2230.315306,0.00024688,2]
[401346394,1768149052766,-500.0,0.00024795,2]
[401346395,1768149052776,-151.0,0.000248,7]
[401346396,1768149052785,-151.0,0.000248,7]
[401346397,1768149052795,-301.393574,0.000248,7]
[401346398,1768149052804,-151.0,0.000248,7]
[401346399,1768149052814,-151.0,0.000248,7]
[401346400,1768149052823,-151.0,0.000248,7]
[401346401,1768149052833,-151.0,0.000248,7]
[401346402,1768149052843,-151.0,0.000248,7]
[401346403,1768149052852,-151.0,0.000248,7]
[401346404,1768149052862,-151.0,0.000248,7]
[401346405,1768149052871,-225.859576,0.000248,7]
[401346406,1768149052881,-216.089114,0.000248,7]
[401346407,1768149052890,-216.089114,0.000248,7]
[401346408,1768149052899,-216.089114,0.000248,7]
[401346409,1768149052909,-151.0,0.000248,7]
[401346410,1768149052918,-216.089114,0.000248,7]
[401346411,1768149052932,-151.0,0.000248,7]
[401346412,1768149052941,-151.0,0.000248,7]
[401346413,1768149052951,-164.871038,0.000248,7]
[401346414,1768149052960,-151.0,0.000248,7]
[401346415,1768149052969,-170.54126,0.000248,7]
[401346416,1768149052978,-151.0,0.000248,7]
[401346417,1768149052988,-151.0,0.000248,7]
[401346418,1768149052997,-151.0,0.000248,7]
[401346419,1768149053007,-151.0,0.000248,7]
[401346420,1768149053016,-151.0,0.000248,7]
[401346421,1768149053025,-151.0,0.000248,7]
[401346422,1768149053034,-151.0,0.000248,7]
[401346423,1768149053044,-200.586455,0.000248,7]
[401346424,1768149053054,-151.0,0.000249,7]
[401346425,1768149053063,-160.002934,0.000249,7]
[401346426,1768149053073,-151.0,0.000249,7]
[401346427,1768149053083,-151.0,0.000249,7]
[401346428,1768149053092,-151.0,0.000249,7]
[401346429,1768149053102,-466.694893,0.000249,7]
[401346430,1768149053112,-466.694893,0.000249,7]
[401346431,1768149053122,-466.694893,0.000249,7]
[401346432,1768149053131,-466.694893,0.000249,7]
[401346433,1768149053141,-151.0,0.000249,7]
[401346434,1768149053151,-151.0,0.000249,7]
[401346435,1768149053162,-151.0,0.000249,7]
[401346436,1768149053173,-151.0,0.000249,7]
[401346437,1768149053184,-151.0,0.000249,7]
[401346438,1768149053194,-240.800368,0.000249,7]
[401346439,1768149053204,-151.0,0.000249,7]
[401346440,1768149053214,-151.0,0.000249,7]
[401346441,1768149053224,-151.0,0.000249,7]
[401346442,1768149053233,-151.0,0.000249,7]
[401346443,1768149053243,-151.0,0.000249,7]
[401346444,1768149053254,-349.055387,0.000249,7]
[401346445,1768149053263,-349.055387,0.000249,7]
[401346446,1768149053273,-349.055387,0.000249,7]
[401346447,1768149053282,-151.292503,0.000249,7]
[401346448,1768149053292,-349.055387,0.000249,7]
[401346449,1768149053301,-400097.821185,0.000249,2]
[401346450,1768149053311,-151.0,0.000249,7]
[401346451,1768149053320,-151.0,0.000249,2]
[401346452,1768149053330,-151.0,0.000249,7]
[401346453,1768149053339,-156.419626,0.000249,7]
[401346454,1768149053349,-1324.597958,0.000249,7]
[401346455,1768149053358,-1324.597958,0.000249,7]
[401346456,1768149053368,-1324.597958,0.000249,7]
[401346457,1768149053377,-1638.845663,0.000249,7]
[401346458,1768149053387,-1324.597958,0.000249,7]
[401346459,1768149053396,-1638.845663,0.000249,7]
[401346460,1768149053406,-1638.845663,0.000249,7]
[401346461,1768149053415,-1638.845663,0.000249,7]
[401346462,1768149053428,-286.469083,0.000249,7]
[401346463,1768149053438,-151.0,0.000249,7]
[401346464,1768149053448,-165.523557,0.000249,7]
[401346465,1768149053467,-165.523557,0.000249,7]
[401346466,1768149053485,-165.523557,0.000249,7]
[401346467,1768149053494,-165.523557,0.000249,7]
[401346468,1768149053503,-728.329358,0.000249,7]
[401346469,1768149053513,-728.329358,0.000249,7]
[401346470,1768149053525,-151.0,0.000249,7]
[401346471,1768149053539,-728.329358,0.000249,7]
[401346472,1768149053549,-728.329358,0.000249,7]
[401346473,1768149053559,-151.0,0.000249,7]
[401346474,1768149053569,-151.0,0.000249,7]
[401346475,1768149053646,-151.0,0.000249,7]
[401346476,1768149053657,-151.0,0.000249,7]
[401346477,1768149053667,-163.313773,0.000249,7]
[401346478,1768149053678,-152.567384,0.000249,7]
[401346479,1768149053688,-151.0,0.000249,7]
[401346480,1768149053698,-161.662681,0.000249,7]
[401346481,1768149053707,-151.0,0.000249,7]
[401346482,1768149053717,-151.74,0.000249,2]
[401346483,1768149053727,-151.0,0.000249,7]
[401346484,1768149053737,-151.0,0.000249,7]
[401346485,1768149053747,-151.0,0.000249,7]
[401346486,1768149053757,-151.0,0.000249,7]
[401346487,1768149053766,-151.0,0.000249,7]
[401346488,1768149053776,-151.0,0.000249,7]
[401346489,1768149053787,-500.0,0.00024932,2]
[401346490,1768149053797,-556.3,0.0002496,2]
[401346491,1768149053807,-468.77,0.00025,2]
[401346492,1768149053817,-2675.46555144,0.00025,2]
[401346493,1768149053827,-20757.85955183,0.00025,2]
[401346494,1768149053837,-10364.0,0.00025,2]
[401346495,1768149053847,-500.0,0.00025,2]
[401346496,1768149053856,-2074.08935166,0.00025,2]
[401346497,1768149053866,-759.6161654,0.00025,2]
[401346498,1768149053876,-2000.0,0.0002502,7]
[401346499,1768149053886,-500.0,0.00025069,2]
[401346500,1768149053895,-1000.74,0.000251,7]
[401346501,1768149053907,-4979.17661701,0.00025184,2]
[401346502,1768149053917,-250.0,0.00025205,2]
[401346503,1768149053929,-500.0,0.00025206,2]
[401346504,1768149053938,-335.36136099,0.00025236,2]
[401346505,1768149053948,-151.0,0.00025236,2]
[401346506,1768149053957,-478.75725327,0.00025236,2]
[401346507,1768149053967,-2312.83697232,0.00025236,2]
[401346508,1768149053977,-500.0,0.00025343,2]
[401346509,1768149053987,-500.0,0.0002548,2]
[401346510,1768149053997,-468.77,0.000255,2]
[401346511,1768149054007,-1000.0,0.000255,2]
[401346512,1768149054017,-301.77529652,0.00025562,14]
[401346513,1768149054027,-350.0,0.00025753,2]
[401346514,1768149054036,-377.27993633,0.00025784,2]
[401346515,1768149054046,-296.59935167,0.00025784,2]
[401346516,1768149054056,-496.47127164,0.00025784,2]
[401346517,1768149054065,-2398.4119403,0.00025784,2]
[401346518,1768149054074,-2140.41,0.000258,14]
[401346519,1768149054084,-151.0,0.000258,20]
[401346520,1768149054093,-151.74,0.000258,2]
[401346521,1768149054103,-2026.41544348,0.0002587,2]
[401346522,1768149054112,-821.47612301,0.00025939,2]
[401346523,1768149054124,-468.77,0.00026,2]
[401346524,1768149054134,-70607.87391328,0.00026,30]
[401346525,1768149054144,-181.17141011,0.00026018,2]
[401346526,1768149054153,-151.0,0.000262,20]
[401346527,1768149054163,-13367.01,0.000262,2]
[401346528,1768149054172,-450.0,0.00026301,2]
[401346529,1768149054184,-514.84070869,0.00026332,2]
[401346530,1768149054193,-2487.15318209,0.00026332,2]
[401346531,1768149054203,-556.3,0.00026465,2]
[401346532,1768149054212,-468.77,0.000265,2]
[401346533,1768149054221,-151.74,0.000267,2]
[401346534,1768149054230,-550.0,0.00026849,2]
[401346535,1768149054239,-533.88981491,0.0002688,2]
[401346536,1768149054249,-2579.17784983,0.0002688,2]
[401346537,1768149054258,-468.77,0.000271,2]
[401346538,1768149054268,-176.0,0.00027205,23]
[401346539,1768149054278,-394.08412848,0.0002739,7]
[401346540,1768149054286,-745.54429652,0.00027397,8]
[401346541,1768149054295,-500.0,0.00027397,8]
[401346542,1768149054304,-510.31728869,0.00027397,8]
[401346543,1768149054313,-511.42,0.00027397,8]
[401346544,1768149054323,-210.64083434,0.00027397,8]
[401346545,1768149054332,-506.27876809,0.00027397,8]
[401346546,1768149054341,-584.92818268,0.00027397,8]
[401346547,1768149054351,-505.71118481,0.00027397,8]
[401346548,1768149054360,-506.19561668,0.00027397,8]
[401346549,1768149054369,-470.16657396,0.00027397,8]
[401346550,1768149054378,-223.00612782,0.00027397,8]
[401346551,1768149054387,-511.2635964,0.00027397,8]
[401346552,1768149054397,-500.0,0.00027397,8]
[401346553,1768149054406,-500.0,0.00027397,8]
[401346554,1768149054416,-500.0,0.00027397,8]
[401346555,1768149054427,-289.81934989,0.00027397,8]
[401346556,1768149054437,-575.38785442,0.00027397,8]
[401346557,1768149054446,-512.75303942,0.00027397,8]
[401346558,1768149054460,-240.94098718,0.00027397,8]
[401346559,1768149054470,-361.66476166,0.00027397,8]
[401346560,1768149054479,-503.90614226,0.00027397,8]
[401346561,1768149054488,-544.06434605,0.00027397,8]
[401346562,1768149054498,-500.0,0.00027397,8]
[401346563,1768149054507,-500.0,0.00027397,8]
[401346564,1768149054518,-500.0,0.00027397,8]
[401346565,1768149054530,-506.70821514,0.00027397,8]
[401346566,1768149054539,-154.49913443,0.00027397,8]
[401346567,1768149054548,-277.33327289,0.00027397,8]
[401346568,1768149054559,-261.89333374,0.00027397,8]
[401346569,1768149054570,-573.48613407,0.00027397,8]
[401346570,1768149054579,-536.96257138,0.00027397,8]
[401346571,1768149054589,-510.47228054,0.00027397,8]
[401346572,1768149054598,-502.99137935,0.00027397,8]
[401346573,1768149054608,-500.0,0.00027397,8]
[401346574,1768149054617,-532.68814088,0.00027397,8]
[401346575,1768149054628,-599.43015721,0.00027397,8]
[401346576,1768149054638,-504.0948618,0.00027397,8]
[401346577,1768149054647,-556.78391806,0.00027397,8]
[401346578,1768149054656,-500.0,0.00027397,8]
[401346579,1768149054665,-513.4448394,0.00027397,8]
[401346580,1768149054676,-500.0,0.00027397,8]
[401346581,1768149054686,-504.61600788,0.00027397,8]
[401346582,1768149054695,-559.46886412,0.00027397,8]
[401346583,1768149054704,-555.12064961,0.00027397,8]
[401346584,1768149054714,-559.00678652,0.00027397,8]
[401346585,1768149054724,-511.68339076,0.00027397,8]
[401346586,1768149054733,-607.3523042,0.00027397,8]
[401346587,1768149054742,-546.35140966,0.00027397,8]
[401346588,1768149054752,-500.0,0.00027397,8]
[401346589,1768149054822,-571.20178268,0.00027397,8]
[401346590,1768149054831,-663.704051,0.00027397,8]
[401346591,1768149054840,-500.0,0.00027397,8]
[401346592,1768149054849,-344.667262,0.00027397,8]
[401346593,1768149054857,-755.83,0.00027397,8]
[401346594,1768149054867,-150.97237527,0.00027397,8]
[401346595,1768149054876,-208.705745,0.00027397,8]
[401346596,1768149054886,-500.0,0.00027397,8]
[401346597,1768149054896,-357.28327772,0.00027397,8]
[401346598,1768149054909,-500.0,0.00027397,2]
[401346599,1768149054918,-550.91570645,0.00027397,8]
[401346600,1768149054931,-525.47052968,0.00027397,8]
[401346601,1768149054944,-508.47586913,0.00027397,8]
[401346602,1768149054953,-534.30368528,0.00027397,8]
[401346603,1768149054962,-500.0,0.00027397,8]
[401346604,1768149054972,-500.0,0.00027397,8]
[401346605,1768149054982,-504.32900075,0.00027397,8]
[401346606,1768149054991,-514.24228966,0.00027397,8]
[401346607,1768149055001,-153.43170984,0.00027397,8]
[401346608,1768149055011,-500.0,0.00027397,8]
[401346609,1768149055020,-500.0,0.00027397,8]
[401346610,1768149055030,-500.0,0.00027397,8]
[401346611,1768149055039,-500.0,0.00027397,2]
[401346612,1768149055049,-504.06028956,0.00027397,8]
[401346613,1768149055059,-525.79336527,0.00027397,8]
[401346614,1768149055068,-503.45730481,0.00027397,8]
[401346615,1768149055077,-601.14032287,0.00027397,2]
[401346616,1768149055086,-587.39279836,0.00027397,8]
[401346617,1768149055095,-500.0,0.00027397,8]
[401346618,1768149055105,-503.81493644,0.00027397,8]
[401346619,1768149055114,-505.38162549,0.00027397,8]
[401346620,1768149055124,-500.0,0.00027397,8]
[401346621,1768149055134,-504.58730957,0.00027397,8]
[401346622,1768149055143,-500.0,0.00027397,8]
[401346623,1768149055153,-582.56702915,0.00027397,8]
[401346624,1768149055162,-506.69367317,0.00027397,8]
[401346625,1768149055171,-500.0,0.00027397,2]
[401346626,1768149055182,-510.73351172,0.00027397,8]
[401346627,1768149055191,-155.09141946,0.00027397,8]
[401346628,1768149055201,-2769.41,0.00027397,3]
[401346629,1768149055210,-500.0,0.00027397,8]
[401346630,1768149055220,-501.48369202,0.00027397,8]
[401346631,1768149055229,-517.41385528,0.00027397,8]
[401346632,1768149055239,-521.64444701,0.00027397,8]
[401346633,1768149055247,-2486.72,0.00027397,8]
[401346634,1768149055257,-515.77118193,0.00027397,8]
[401346635,1768149055267,-505.08376008,0.00027397,8]
[401346636,1768149055276,-552.28498218,0.00027397,8]
[401346637,1768149055286,-16913.26,0.00027397,8]
[401346638,1768149055295,-522.33649511,0.00027397,8]
[401346639,1768149055304,-503.1318343,0.00027397,8]
[401346640,1768149055314,-215.36077663,0.00027397,8]
[401346641,1768149055323,-599.63821508,0.00027397,8]
[401346642,1768149055332,-500.0,0.00027397,8]
[401346643,1768149055341,-571.59262155,0.00027397,8]
[401346644,1768149055351,-496.30087179,0.00027397,8]
[401346645,1768149055360,-505.45567173,0.00027397,8]
[401346646,1768149055370,-500.0,0.00027397,8]
[401346647,1768149055379,-537.74011614,0.00027397,8]
[401346648,1768149055388,-521.16032339,0.00027397,8]
[401346649,1768149055398,-425.00994657,0.00027397,8]
[401346650,1768149055407,-504.48438496,0.00027397,8]
[401346651,1768149055417,-4899.58,0.00027397,8]
[401346652,1768149055429,-2226.28,0.00027397,8]
[401346653,1768149055438,-512.03508644,0.00027397,8]
[401346654,1768149055448,-523.47204712,0.00027397,8]
[401346655,1768149055458,-509.09825176,0.00027397,8]
[401346656,1768149055470,-169.16597099,0.00027397,8]
[401346657,1768149055479,-503.31167463,0.00027397,8]
[401346658,1768149055489,-504.12370539,0.00027397,8]
[401346659,1768149055499,-3222.62,0.00027397,8]
[401346660,1768149055507,-509.55608441,0.00027397,8]
[401346661,1768149055517,-337.63663526,0.00027397,8]
[401346662,1768149055526,-511.731764,0.00027397,8]
[401346663,1768149055536,-239.81900026,0.00027397,8]
[401346664,1768149055547,-525.83016395,0.00027397,8]
[401346665,1768149055556,-527.49642559,0.00027397,8]
[401346666,1768149055566,-593.48375245,0.00027397,8]
[401346667,1768149055575,-561.05106257,0.00027397,8]
[401346668,1768149055584,-516.17782652,0.00027397,8]
[401346669,1768149055594,-514.60578154,0.00027397,8]
[401346670,1768149055603,-407.60874848,0.00027397,8]
[401346671,1768149055612,-261.29087669,0.00027397,8]
[401346672,1768149055621,-357.84852667,0.00027397,8]
[401346673,1768149055631,-2536.91,0.00027397,8]
[401346674,1768149055640,-6797.13,0.00027397,8]
[401346675,1768149055650,-540.24322158,0.00027397,8]
[401346676,1768149055659,-1576.63,0.00027397,8]
[401346677,1768149055669,-505.50165535,0.00027397,8]
[401346678,1768149055680,-165.09995213,0.00027397,8]
[401346679,1768149055690,-500.0,0.00027397,8]
[401346680,1768149055700,-272.93074829,0.00027397,8]
[401346681,1768149055710,-195.29011335,0.00027397,8]
[401346682,1768149055720,-517.20995713,0.00027397,8]
[401346683,1768149055730,-150.87150933,0.00027397,8]
[401346684,1768149055741,-500.0,0.00027397,8]
[401346685,1768149055751,-280.94769815,0.00027397,8]
[401346686,1768149055761,-2011.31,0.00027397,8]
[401346687,1768149055770,-168.3895598,0.00027397,8]
[401346688,1768149055780,-163.11732391,0.00027397,8]
[401346689,1768149055789,-271.93960017,0.00027397,8]
[401346690,1768149055799,-150.1,0.00027397,3]
[401346691,1768149055808,-702.10519323,0.00027397,5]
[401346692,1768149055818,-300.0,0.00027397,2]
[401346693,1768149055828,-300.0,0.00027397,2]
[401346694,1768149055899,-300.0,0.00027397,2]
[401346695,1768149055909,-300.0,0.00027397,2]
[401346696,1768149055918,-500.0,0.00027397,15]
[401346697,1768149055929,-172.824008,0.00027398,7]
[401346698,1768149055939,-151.0,0.00027398,7]
[401346699,1768149055948,-151.0,0.00027398,7]
[401346700,1768149055957,-151.0,0.00027398,7]
[401346701,1768149055967,-151.0,0.00027398,7]
[401346702,1768149055976,-151.0,0.00027398,7]
[401346703,1768149055985,-553.64373807,0.00027428,2]
[401346704,1768149055995,-2569.67484841,0.00027428,2]
[401346705,1768149056004,-151.74,0.000275,2]
[401346706,1768149056013,-468.77,0.000276,2]
[401346707,1768149056022,-500.0,0.00027671,8]
[401346708,1768149056033,-511.42,0.00027671,8]
[401346709,1768149056042,-168.51621167,0.00027671,8]
[401346710,1768149056053,-524.57743511,0.00027671,8]
[401346711,1768149056063,-500.0,0.00027671,8]
[401346712,1768149056072,-501.30732126,0.00027671,8]
[401346713,1768149056082,-505.35430273,0.00027671,8]
[401346714,1768149056091,-542.76368036,0.00027671,8]
[401346715,1768149056100,-500.0,0.00027671,8]
[401346716,1768149056109,-500.0,0.00027671,8]
[401346717,1768149056119,-152.99622449,0.00027671,8]
[401346718,1768149056129,-755.83,0.00027671,8]